bitfinex/quotes_BTCUSD_20251016
["timestamp","ask_amount","ask_price","bid_price","bid_amount"]
[1760594958554,5.20192978,111230.0,111220.0,0.00650307]
[1760594958962,5.20292978,111230.0,111220.0,0.00650307]
[1760594960563,5.15485113,111230.0,111220.0,0.00650307]
[1760594960793,5.21924284,111230.0,111220.0,0.00650307]
[1760594963126,0.17983994,111210.0,111200.0,0.23924887]
[1760594963342,0.0512074,111210.0,111200.0,0.23924887]
[1760594963561,0.07520291,111210.0,111200.0,0.23924887]
[1760594963983,0.25590702,111210.0,111200.0,0.23924887]
[1760594964196,0.25504285,111210.0,111200.0,0.23924891]
[1760594964619,0.25504285,111210.0,111200.0,0.0504]
[1760594964826,0.72743382,111210.0,111200.0,0.0504]
[1760594965039,4.62659579,111210.0,111200.0,0.0504]
[1760594965459,4.62559579,111210.0,111200.0,0.0504]
[1760594966085,4.71528591,111210.0,111200.0,0.0504]
[1760594966300,5.05528591,111210.0,111200.0,0.0504]
[1760594966506,5.01098687,111210.0,111200.0,0.00176338]
[1760594966712,5.02764682,111210.0,111200.0,0.00176338]
[1760594967135,5.0249535,111210.0,111200.0,0.00176338]
[1760594967341,5.0259535,111210.0,111200.0,0.00176338]
[1760594967547,5.0249535,111210.0,111200.0,0.00176338]
[1760594967964,5.0259535,111210.0,111200.0,0.00176338]
[1760594968384,5.09034521,111210.0,111200.0,0.00176338]
[1760594968795,5.09034521,111210.0,111200.0,0.00293773]
[1760594971354,5.12652749,111210.0,111200.0,0.00293773]
[1760594971984,5.06213578,111210.0,111200.0,0.00293773]
[1760594972401,4.58374311,111200.0,111190.0,0.05]
[1760594972607,4.76081475,111200.0,111190.0,0.05008984]
[1760594973034,0.17990465,111170.0,111150.0,0.18024653]
[1760594973263,0.17990465,111170.0,111160.0,0.29328083]
[1760594973264,0.04325499,111170.0,111160.0,0.29328083]
[1760594973464,0.05213332,111170.0,111160.0,0.29328083]
[1760594973671,0.68546043,111170.0,111160.0,0.11336]
[1760594973883,0.68459626,111170.0,111160.0,0.11336]
[1760594974095,0.70129451,111170.0,111150.0,0.29382528]
[1760594974301,0.032931,111160.0,111150.0,0.18038528]
[1760594974544,0.06816166,111160.0,111150.0,0.18038528]
[1760594974776,0.0942865,111160.0,111150.0,0.29382528]
[1760594975610,0.0942865,111160.0,111150.0,0.29482528]
[1760594975816,0.0942865,111160.0,111150.0,0.18138528]
[1760594976021,0.0942865,111160.0,111150.0,0.29482528]
[1760594976233,0.11102827,111160.0,111150.0,0.29482528]
[1760594976642,0.11102827,111160.0,111150.0,0.29582528]
[1760594977081,0.14317571,111160.0,111150.0,0.29582528]
[1760594977517,0.11102827,111160.0,111150.0,0.29582528]
[1760594979667,0.45924484,111170.0,111150.0,0.29582528]
[1760594980147,0.45924484,111170.0,111160.0,0.18227059]
[1760594981276,0.45924484,111170.0,111160.0,0.29567059]
[1760594981705,0.45924484,111170.0,111160.0,0.18227059]
[1760594981922,0.48618112,111170.0,111160.0,0.29567059]
[1760594982143,3.903887,111180.0,111170.0,0.17990465]
[1760594982633,3.903887,111180.0,111170.0,0.29510681]
[1760594982888,0.97574938,111200.0,111180.0,0.17988846]
[1760594982889,0.79056434,111200.0,111180.0,0.17988846]
[1760594983117,4.08375929,111190.0,111180.0,0.29332846]
[1760594983337,3.903887,111190.0,111180.0,0.29332846]
[1760594983557,4.08375929,111190.0,111180.0,0.17988846]
[1760594983775,3.903887,111190.0,111180.0,0.21676729]
[1760594983990,3.903887,111190.0,111180.0,0.33020729]
[1760594984232,4.08375929,111190.0,111180.0,0.21676729]
[1760594984480,0.17987229,111190.0,111180.0,0.33016729]
[1760594984746,3.903887,111190.0,111180.0,0.17988846]
[1760594984964,3.903887,111190.0,111180.0,0.29328846]
[1760594985382,3.90353006,111190.0,111180.0,0.17988846]
[1760594985591,3.90353006,111190.0,111180.0,0.29328846]
[1760594985819,3.93077834,111190.0,111180.0,0.29328846]
[1760594986073,0.05946715,111190.0,111180.0,0.34150729]
[1760594986313,0.03221887,111190.0,111180.0,0.34150729]
[1760594987839,0.21209116,111190.0,111170.0,0.18889988]
[1760594988051,0.21209116,111190.0,111180.0,0.1134]
[1760594988483,0.21209116,111190.0,111180.0,0.29328846]
[1760594988899,0.21209116,111190.0,111180.0,0.29446313]
[1760594989109,0.23876385,111190.0,111180.0,0.29446313]
[1760594989319,0.23876385,111190.0,111180.0,0.18106313]
[1760594989538,0.23876385,111190.0,111180.0,0.29446313]
[1760594989750,0.20654498,111190.0,111180.0,0.29446313]
[1760594990184,0.20654498,111190.0,111180.0,0.18106313]
[1760594990394,0.20654498,111190.0,111180.0,0.29446313]
[1760594991052,4.85629458,111190.0,111180.0,0.00117467]
[1760594991266,0.17991895,111170.0,111150.0,0.18938213]
[1760594991487,0.03223876,111160.0,111150.0,0.27907225]
[1760594991698,0.03613285,111160.0,111150.0,0.1803869]
[1760594991904,0.03613285,111160.0,111150.0,0.2938269]
[1760594992111,0.03613285,111160.0,111150.0,0.18214953]
[1760594992320,0.03613285,111160.0,111150.0,0.23042288]
[1760594992535,0.03613285,111160.0,111150.0,0.34386288]
[1760594992753,0.03613285,111160.0,111150.0,0.34486288]
[1760594993168,0.09255505,111160.0,111150.0,0.23142288]
[1760594993380,0.09255505,111160.0,111150.0,0.34486288]
[1760594993870,0.09255505,111160.0,111150.0,0.34586288]
[1760594994093,0.09255505,111160.0,111150.0,0.23242288]
[1760594994309,0.09255505,111160.0,111150.0,0.18414953]
[1760594994515,0.09255505,111160.0,111150.0,0.29754953]
[1760594994721,0.09255505,111160.0,111150.0,0.18414953]
[1760594994932,0.09255505,111160.0,111150.0,0.29754953]
[1760594995798,0.09255505,111160.0,111150.0,0.18414953]
[1760594996006,0.09255505,111160.0,111150.0,0.29754953]
[1760594996228,0.09255505,111160.0,111150.0,0.18414953]
[1760594996872,0.09255505,111160.0,111150.0,0.29754953]
[1760594997107,0.09255505,111160.0,111150.0,0.18414953]
[1760594997346,0.11501522,111170.0,111160.0,0.17992083]
[1760594998026,3.903531,111170.0,111160.0,0.17992083]
[1760594998254,3.903531,111170.0,111160.0,0.29332083]
[1760594998467,0.17990465,111170.0,111160.0,0.29332083]
[1760594999166,0.17990465,111170.0,111160.0,0.17992083]
[1760594999386,0.17990465,111170.0,111160.0,0.29332083]
[1760594999587,3.903531,111170.0,111160.0,0.29332083]
[1760595000251,0.42537374,111190.0,111170.0,0.17989232]
[1760595000471,0.17988846,111180.0,111170.0,0.17989232]
[1760595000673,0.17988846,111180.0,111170.0,0.29329232]
[1760595001684,0.17988846,111180.0,111160.0,0.18891687]
[1760595001900,0.8619921,111180.0,111170.0,0.11336]
[1760595002117,0.18988846,111180.0,111170.0,0.29326465]
[1760595002547,0.18988846,111180.0,111170.0,0.11336]
[1760595002763,0.18988846,111180.0,111170.0,0.29326465]
[1760595003294,0.18988846,111180.0,111170.0,0.11394744]
[1760595003723,0.8619921,111180.0,111170.0,0.11394744]
[1760595005221,0.8619921,111180.0,111170.0,0.00058744]
[1760595005395,4.86382876,111180.0,111170.0,0.00058744]
[1760595005869,5.20382876,111180.0,111170.0,0.00058744]
[1760595008080,5.29351888,111180.0,111170.0,0.00058744]
[1760595008294,5.29621265,111180.0,111170.0,0.00058744]
[1760595009198,5.33236836,111180.0,111170.0,0.00058744]
[1760595009945,5.36855064,111180.0,111170.0,0.00058744]
[1760595010609,5.41694357,111180.0,111170.0,0.00058744]
[1760595011299,5.41794357,111180.0,111170.0,0.00058744]
[1760595011545,5.36955064,111180.0,111170.0,0.00058744]
[1760595012001,5.43707024,111180.0,111170.0,0.00058744]
[1760595013354,5.42027016,111180.0,111170.0,0.00058744]
[1760595013581,5.43705391,111180.0,111170.0,0.00058744]
[1760595014715,5.68635391,111180.0,111170.0,0.00058744]
[1760595016295,5.68635423,111180.0,111170.0,0.00058744]
[1760595016535,5.73474716,111180.0,111170.0,0.00058744]
[1760595016762,5.76180391,111180.0,111170.0,0.00058744]
[1760595018966,5.28933028,111180.0,111170.0,0.00058744]
[1760595019223,5.67453493,111180.0,111170.0,0.00058744]
[1760595019435,5.60801533,111180.0,111170.0,0.00058744]
[1760595023537,5.6080376,111180.0,111170.0,0.00058744]
[1760595025798,5.64421988,111180.0,111170.0,0.00058744]
[1760595026030,5.64691365,111180.0,111170.0,0.00058744]
[1760595026244,5.64591365,111180.0,111170.0,0.00058744]
[1760595027304,5.67718715,111180.0,111170.0,0.00058744]
[1760595027758,5.53668119,111180.0,111170.0,0.00058744]
[1760595027966,5.71656965,111180.0,111170.0,0.00058744]
[1760595028197,5.71756965,111180.0,111170.0,0.00058744]
[1760595028398,5.71856965,111180.0,111170.0,0.00058744]
[1760595034119,5.29718272,111180.0,111170.0,0.00058744]
[1760595034336,4.43573109,111180.0,111170.0,0.00058744]
[1760595034972,0.56054409,111180.0,111170.0,0.18049209]
[1760595035182,0.55954409,111180.0,111170.0,0.00058744]
[1760595035396,0.55854409,111180.0,111170.0,0.00058744]
[1760595037584,0.53918846,111180.0,111170.0,0.18049209]
[1760595037797,0.55856781,111180.0,111170.0,0.18049209]
[1760595038451,0.37867935,111180.0,111170.0,0.18049209]
[1760595038654,0.53918846,111180.0,111170.0,0.29373209]
[1760595038860,0.55856781,111180.0,111170.0,0.29373209]
[1760595039069,0.55856781,111180.0,111170.0,0.18049209]
[1760595039278,0.53918846,111180.0,111170.0,0.29373209]
[1760595039784,0.53918846,111180.0,111170.0,0.18049209]
[1760595040004,0.53918846,111180.0,111170.0,0.11382744]
[1760595040843,0.53918846,111180.0,111170.0,0.00058744]
[1760595041055,0.53918846,111180.0,111170.0,0.11382744]
[1760595041693,0.53918846,111180.0,111170.0,0.29373209]
[1760595042372,0.02667269,111190.0,111180.0,0.17988846]
[1760595042593,0.04667269,111190.0,111180.0,0.17988846]
[1760595042816,3.875187,111190.0,111180.0,0.17988846]
[1760595043034,3.875187,111190.0,111180.0,0.29312846]
[1760595043949,3.875187,111190.0,111180.0,0.17988846]
[1760595044181,3.875187,111190.0,111180.0,0.29312846]
[1760595044418,0.03711025,111190.0,111180.0,0.29312846]
[1760595044875,0.17987229,111190.0,111180.0,0.29312846]
[1760595045089,0.17987229,111190.0,111180.0,0.17988846]
[1760595045299,0.21654345,111190.0,111180.0,0.29312846]
[1760595045725,0.03667116,111190.0,111180.0,0.17988846]
[1760595045935,0.03667116,111190.0,111180.0,0.29312846]
[1760595046144,3.875187,111190.0,111180.0,0.17988846]
[1760595046358,3.875187,111190.0,111180.0,0.29312846]
[1760595046779,0.03625769,111190.0,111180.0,0.29312846]
[1760595047191,3.875187,111190.0,111180.0,0.29312846]
[1760595049166,0.03675898,111200.0,111190.0,0.17985704]
[1760595049644,0.57380054,111210.0,111200.0,0.17985611]
[1760595049880,0.02,111210.0,111200.0,0.17985611]
[1760595050105,0.05614165,111210.0,111200.0,0.29305611]
[1760595050536,0.19983994,111210.0,111200.0,0.1132]
[1760595050753,0.19983994,111210.0,111190.0,0.17985704]
[1760595050966,0.2359194,111210.0,111200.0,0.1132]
[1760595051181,0.2359194,111210.0,111200.0,0.17985611]
[1760595051622,0.6208834,111210.0,111200.0,0.29309611]
[1760595052049,0.6208834,111210.0,111200.0,0.17985611]
[1760595052492,0.6208834,111210.0,111200.0,0.29309611]
[1760595052922,0.2359194,111210.0,111200.0,0.17985611]
[1760595053136,0.6208834,111210.0,111200.0,0.29309611]
[1760595053483,0.6208834,111210.0,111200.0,0.17985611]
[1760595053692,0.6208834,111210.0,111200.0,0.29305611]
[1760595054108,0.44104346,111210.0,111200.0,0.17985611]
[1760595054519,0.05607946,111210.0,111200.0,0.29305611]
[1760595054723,0.05607946,111210.0,111200.0,0.17985611]
[1760595055612,0.05607946,111210.0,111200.0,0.29305611]
[1760595056565,0.05607946,111210.0,111200.0,0.17985611]
[1760595056902,0.2359194,111210.0,111200.0,0.29305611]
[1760595057111,0.6208834,111210.0,111200.0,0.1132]
[1760595057316,0.6208834,111210.0,111200.0,0.29305611]
[1760595057480,0.6208834,111210.0,111200.0,0.17985611]
[1760595057695,0.6208834,111210.0,111200.0,0.29305611]
[1760595057906,0.6208834,111210.0,111200.0,0.17985611]
[1760595058110,0.6208834,111210.0,111200.0,0.29305611]
[1760595059269,0.6208834,111210.0,111190.0,0.17985704]
[1760595059489,0.2359194,111210.0,111200.0,0.1132]
[1760595060148,0.2359194,111210.0,111190.0,0.17985704]
[1760595060369,0.2359194,111210.0,111200.0,0.1132]
[1760595060799,0.6208834,111210.0,111200.0,0.1132]
[1760595061012,0.6208834,111210.0,111190.0,0.17985704]
[1760595061233,0.6208834,111210.0,111200.0,0.1132]
[1760595061915,4.97971651,111210.0,111170.0,0.00058744]
[1760595062148,0.56484848,111190.0,111180.0,0.17988846]
[1760595062380,0.31460151,111210.0,111190.0,0.17987229]
[1760595062647,0.56482011,111200.0,111190.0,0.17987229]
[1760595062879,0.56482011,111200.0,111190.0,0.1132]
[1760595063100,0.17985611,111200.0,111180.0,0.17988846]
[1760595063321,0.56482011,111200.0,111190.0,0.1132]
[1760595063538,0.58415577,111200.0,111180.0,0.17988846]
[1760595063766,0.59415577,111200.0,111190.0,0.1132]
[1760595064000,0.17987229,111190.0,111180.0,0.17988846]
[1760595064222,0.56483629,111190.0,111180.0,0.17988846]
[1760595064667,0.56483629,111190.0,111180.0,0.29308846]
[1760595064882,0.56483629,111190.0,111180.0,0.17988846]
[1760595065126,0.56483629,111190.0,111180.0,0.29308846]
[1760595065332,0.56483629,111190.0,111180.0,0.001]
[1760595065333,0.19922676,111190.0,111180.0,0.001]
[1760595065562,0.17987229,111190.0,111180.0,0.29408846]
[1760595065783,0.17987229,111190.0,111180.0,0.18088846]
[1760595065784,0.56483629,111190.0,111180.0,0.18088846]
[1760595066015,0.58419076,111190.0,111180.0,0.1152]
[1760595066237,0.58419076,111190.0,111180.0,0.002]
[1760595066497,0.58419076,111190.0,111180.0,0.1152]
[1760595066725,0.71419076,111190.0,111180.0,0.29508846]
[1760595066961,0.71419076,111190.0,111180.0,0.18188846]
[1760595067195,0.71419076,111190.0,111180.0,0.1152]
[1760595067428,0.14935447,111190.0,111180.0,0.1152]
[1760595067653,0.69483629,111190.0,111180.0,0.1152]
[1760595067903,0.71420448,111190.0,111180.0,0.1152]
[1760595068119,0.71420448,111190.0,111180.0,0.002]
[1760595068120,1.09916848,111190.0,111180.0,0.002]
[1760595068329,4.58939148,111190.0,111180.0,0.002]
[1760595069834,4.58939148,111190.0,111180.0,0.1152]
[1760595070061,0.32924048,111190.0,111180.0,0.002]
[1760595070357,0.69483629,111190.0,111180.0,0.002]
[1760595070578,0.14936819,111190.0,111180.0,0.5848413]
[1760595070797,0.62026071,111210.0,111200.0,0.17985611]
[1760595071018,0.66026071,111210.0,111200.0,0.1132]
[1760595071237,0.27529671,111210.0,111190.0,0.56482231]
[1760595071457,0.2559194,111210.0,111200.0,0.1132]
[1760595071816,0.6408834,111210.0,111190.0,0.17985831]
[1760595072028,0.66026071,111210.0,111190.0,0.17985831]
[1760595072233,0.27529671,111210.0,111200.0,0.1132]
[1760595072438,0.6408834,111210.0,111200.0,0.1132]
[1760595072644,0.66026071,111210.0,111200.0,0.17985611]
[1760595072870,0.66026071,111210.0,111200.0,0.29305611]
[1760595073071,0.66026071,111210.0,111200.0,0.17985611]
[1760595073278,0.66026071,111210.0,111190.0,0.17985831]
[1760595073724,0.66026071,111210.0,111200.0,0.1132]
[1760595074175,0.66026071,111210.0,111190.0,0.17985831]
[1760595074382,0.66026071,111210.0,111200.0,0.1132]
[1760595074595,0.17985611,111200.0,111190.0,0.17985831]
[1760595074806,0.17985611,111200.0,111190.0,0.29305831]
[1760595075244,0.62026071,111210.0,111190.0,0.29305831]
[1760595075463,0.74026071,111210.0,111190.0,0.29305831]
[1760595075670,0.74026071,111210.0,111190.0,0.17985831]
[1760595075884,0.74026071,111210.0,111200.0,0.1132]
[1760595076297,0.74026071,111210.0,111190.0,0.17985831]
[1760595076513,0.74026071,111210.0,111200.0,0.1132]
[1760595076951,0.74026071,111210.0,111190.0,0.17985831]
[1760595077167,0.74026071,111210.0,111200.0,0.1132]
[1760595077386,0.17545677,111210.0,111200.0,0.29305611]
[1760595077603,0.15607946,111210.0,111200.0,0.29305611]
[1760595077857,0.15607946,111210.0,111200.0,0.17985611]
[1760595078065,0.15607946,111210.0,111200.0,0.29305611]
[1760595078293,0.15607946,111210.0,111200.0,0.17985611]
[1760595078521,0.15607946,111210.0,111200.0,0.29305611]
[1760595078939,0.15607946,111210.0,111200.0,0.17985611]
[1760595079347,0.15607946,111210.0,111200.0,0.29305611]
[1760595079564,0.7208834,111210.0,111200.0,0.29305611]
[1760595079775,0.74026071,111210.0,111200.0,0.29305611]
[1760595079983,0.35529671,111210.0,111200.0,0.29305611]
[1760595080190,0.3359194,111210.0,111200.0,0.29305611]
[1760595080427,0.3359194,111210.0,111200.0,0.1132]
[1760595080631,0.7208834,111210.0,111200.0,0.1132]
[1760595080854,0.74026071,111210.0,111200.0,0.1132]
[1760595081736,0.18885802,111200.0,111180.0,0.17988502]
[1760595081950,0.56483629,111190.0,111180.0,0.17988502]
[1760595082189,0.5842136,111190.0,111180.0,0.29304502]
[1760595082400,0.5942136,111190.0,111180.0,0.29304502]
[1760595082618,0.41434131,111190.0,111180.0,0.29304502]
[1760595082827,0.57483629,111190.0,111180.0,0.17988502]
[1760595083052,0.5942136,111190.0,111180.0,0.29504502]
[1760595083266,0.5942136,111190.0,111180.0,0.001]
[1760595083482,0.5942136,111190.0,111180.0,0.002]
[1760595083697,4.8543646,111190.0,111180.0,0.002]
[1760595083906,4.96826496,111190.0,111180.0,0.002]
[1760595084329,0.17988846,111180.0,111170.0,0.00063732]
[1760595084538,0.96981646,111180.0,111170.0,0.11379732]
[1760595084746,0.98919377,111180.0,111170.0,0.11379732]
[1760595085377,0.60422977,111180.0,111170.0,0.11379732]
[1760595085640,0.60422977,111180.0,111170.0,0.00163732]
[1760595086072,0.60422977,111180.0,111170.0,0.11479732]
[1760595086481,0.34055041,111180.0,111170.0,0.29470197]
[1760595086698,0.34055041,111180.0,111170.0,0.29574197]
[1760595086911,0.52043887,111180.0,111170.0,0.29574197]
[1760595087123,0.34055041,111180.0,111170.0,0.18254197]
[1760595087333,0.404964,111180.0,111170.0,0.23100773]
[1760595087537,0.02,111180.0,111170.0,0.34420773]
[1760595087742,3.875187,111180.0,111170.0,0.34420773]
[1760595087966,0.57382202,111200.0,111180.0,0.17988846]
[1760595088183,3.875187,111190.0,111180.0,0.17988846]
[1760595088390,0.56483629,111190.0,111180.0,0.17988846]
[1760595088605,3.875187,111190.0,111180.0,0.17988846]
[1760595088811,3.875187,111190.0,111180.0,0.29308846]
[1760595090021,3.875187,111190.0,111180.0,0.17988846]
[1760595090305,3.875187,111190.0,111180.0,0.29308846]
[1760595091377,4.05505929,111190.0,111180.0,0.29308846]
[1760595091602,0.56483629,111190.0,111180.0,0.17988846]
[1760595091822,0.56483629,111190.0,111180.0,0.29308846]
[1760595092499,0.56483629,111190.0,111180.0,0.17988846]
[1760595092709,0.56483629,111190.0,111180.0,0.29308846]
[1760595093609,0.56483629,111190.0,111180.0,0.17988846]
[1760595093816,0.56483629,111190.0,111180.0,0.29308846]
[1760595094228,0.59483629,111190.0,111180.0,0.17988846]
[1760595094451,0.59483629,111190.0,111180.0,0.29308846]
[1760595095338,0.414964,111190.0,111180.0,0.17988846]
[1760595095542,0.414964,111190.0,111180.0,0.29308846]
[1760595096217,0.59483629,111190.0,111180.0,0.29308846]
[1760595096425,0.59483629,111190.0,111180.0,0.17988846]
[1760595096633,0.414964,111190.0,111180.0,0.17988846]
[1760595096853,0.414964,111190.0,111180.0,0.29308846]
[1760595097076,0.03,111190.0,111180.0,0.29308846]
[1760595097299,0.03,111190.0,111180.0,0.17988846]
[1760595097525,0.03,111190.0,111180.0,0.29308846]
[1760595097734,0.03,111190.0,111180.0,0.21683103]
[1760595097955,0.57382202,111200.0,111190.0,0.17987229]
[1760595098176,0.58382202,111200.0,111190.0,0.17987229]
[1760595098397,0.58382202,111200.0,111190.0,0.1132]
[1760595098608,0.58382202,111200.0,111190.0,0.29307229]
[1760595099685,0.58382202,111200.0,111190.0,0.1132]
[1760595099929,0.17987229,111190.0,111180.0,0.17988846]
[1760595100142,0.56483629,111190.0,111180.0,0.29308846]
[1760595100352,0.56483629,111190.0,111180.0,0.17988846]
[1760595100564,0.56483629,111190.0,111180.0,0.29308846]
[1760595101233,0.57483629,111190.0,111180.0,0.29308846]
[1760595101444,4.45002329,111190.0,111170.0,0.18053883]
[1760595101661,4.260151,111180.0,111170.0,0.18053883]
[1760595101872,0.384964,111180.0,111170.0,0.29373883]
[1760595102087,0.384964,111180.0,111170.0,0.18053883]
[1760595102311,0.384964,111180.0,111170.0,0.29373883]
[1760595102544,4.44002329,111190.0,111180.0,0.17988846]
[1760595102755,4.45002329,111190.0,111180.0,0.17988846]
[1760595102967,4.45002329,111190.0,111180.0,0.29308846]
[1760595105070,0.57483629,111190.0,111180.0,0.29308846]
[1760595105487,0.5748857,111190.0,111180.0,0.29308846]
[1760595107824,0.5748857,111190.0,111180.0,0.17988846]
[1760595108205,0.5748857,111190.0,111180.0,0.29308846]
[1760595109382,0.18987229,111190.0,111180.0,0.29308846]
[1760595109611,0.5748857,111190.0,111180.0,0.17988846]
[1760595109811,0.5748857,111190.0,111180.0,0.29308846]
[1760595110125,0.5748857,111190.0,111180.0,0.1132]
[1760595110744,4.46949287,111190.0,111180.0,0.1132]
[1760595110957,4.46949287,111190.0,111170.0,0.18053883]
[1760595111165,3.875187,111180.0,111170.0,0.18053883]
[1760595111383,3.875187,111180.0,111170.0,0.29373883]
[1760595112643,3.875187,111180.0,111170.0,0.29473883]
[1760595113079,3.875187,111180.0,111170.0,0.18153883]
[1760595113286,3.875187,111180.0,111170.0,0.29473883]
[1760595113698,3.875187,111180.0,111170.0,0.18153883]
[1760595113907,3.875187,111180.0,111170.0,0.29573883]
[1760595115335,3.875187,111180.0,111170.0,0.18253883]
[1760595115542,3.875187,111180.0,111170.0,0.29573883]
[1760595116219,4.05505929,111190.0,111180.0,0.17988846]
[1760595116457,4.0744909,111190.0,111180.0,0.17988846]
[1760595116806,4.0744909,111190.0,111180.0,0.29308846]
[1760595117133,4.0744909,111190.0,111180.0,0.1132]
[1760595117349,4.45950431,111190.0,111180.0,0.1132]
[1760595117560,3.875187,111180.0,111170.0,0.18153883]
[1760595117747,3.875187,111180.0,111170.0,0.29473883]
[1760595117980,3.875187,111180.0,111170.0,0.18053883]
[1760595118194,3.875187,111180.0,111170.0,0.29373883]
[1760595118626,3.875187,111180.0,111170.0,0.18053883]
[1760595118844,3.875187,111180.0,111170.0,0.29473883]
[1760595119273,3.875187,111180.0,111170.0,0.18253883]
[1760595119900,3.875187,111180.0,111170.0,0.29573883]
[1760595120141,3.875187,111180.0,111170.0,0.18253883]
[1760595120554,0.17988846,111180.0,111170.0,0.18253883]
[1760595120978,0.17988846,111180.0,111170.0,0.29573883]
[1760595121198,0.17988846,111180.0,111170.0,0.18253883]
[1760595121824,0.17988846,111180.0,111170.0,0.29573883]
[1760595122031,0.17988846,111180.0,111170.0,0.18253883]
[1760595122467,0.58431473,111190.0,111170.0,0.18253883]
[1760595122709,3.875187,111180.0,111170.0,0.18253883]
[1760595122929,3.875187,111180.0,111170.0,0.29573883]
[1760595123349,3.875187,111180.0,111170.0,0.29473883]
[1760595123560,0.17988846,111180.0,111170.0,0.29473883]
[1760595124209,3.875187,111180.0,111170.0,0.29473883]
[1760595124414,3.875187,111180.0,111170.0,0.18153883]
[1760595124618,3.875187,111180.0,111170.0,0.29473883]
[1760595124828,4.06507546,111180.0,111170.0,0.11483732]
[1760595125044,0.18988846,111180.0,111170.0,0.00163732]
[1760595125254,0.18988846,111180.0,111170.0,0.29474197]
[1760595125461,0.18988846,111180.0,111170.0,0.29574197]
[1760595125671,4.05507546,111180.0,111170.0,0.29574197]
[1760595125889,0.57490187,111180.0,111170.0,0.00263732]
[1760595126097,0.57759559,111180.0,111170.0,0.00263732]
[1760595126305,0.57759559,111180.0,111170.0,0.11583732]
[1760595127127,0.57490187,111180.0,111170.0,0.18254197]
[1760595127332,0.57490187,111180.0,111170.0,0.29574197]
[1760595127541,0.57490187,111180.0,111170.0,0.18254197]
[1760595127750,0.57490187,111180.0,111170.0,0.29574197]
[1760595127990,0.57490187,111180.0,111170.0,0.19908889]
[1760595128390,0.18988846,111180.0,111170.0,0.31228889]
[1760595128604,0.18988846,111180.0,111170.0,0.13238424]
[1760595128833,0.18988846,111180.0,111170.0,0.11583732]
[1760595129985,0.18988846,111180.0,111170.0,0.00263732]
[1760595130212,0.18988846,111180.0,111170.0,0.11583732]
[1760595130472,0.57490187,111180.0,111170.0,0.11583732]
[1760595130700,0.66730587,111180.0,111170.0,0.11583732]
[1760595130907,0.66730587,111180.0,111170.0,0.00263732]
[1760595131130,0.66730587,111180.0,111170.0,0.11583732]
[1760595131850,0.66730587,111180.0,111170.0,0.00263732]
[1760595132056,0.66730587,111180.0,111170.0,0.11583732]
[1760595132688,0.28229246,111180.0,111170.0,0.29574197]
[1760595132911,0.28229246,111180.0,111170.0,0.00263732]
[1760595133118,0.28229246,111180.0,111170.0,0.11583732]
[1760595133548,0.28229246,111180.0,111170.0,0.00263732]
[1760595133739,0.28229246,111180.0,111170.0,0.11583732]
[1760595134241,0.28229246,111180.0,111170.0,0.29574197]
[1760595134457,0.102404,111180.0,111170.0,0.29574197]
[1760595134676,0.102404,111180.0,111170.0,0.34330799]
[1760595134677,0.092404,111180.0,111170.0,0.34330799]
[1760595134887,0.092404,111180.0,111170.0,0.7283214]
[1760595135262,0.092404,111180.0,111170.0,0.34330799]
[1760595135681,0.092404,111180.0,111170.0,0.18254197]
[1760595136099,0.092404,111180.0,111170.0,0.29574197]
[1760595136524,0.092404,111180.0,111170.0,0.18254197]
[1760595136684,0.092404,111180.0,111170.0,0.29574197]
[1760595137312,0.092404,111180.0,111170.0,0.68075538]
[1760595137512,0.092404,111180.0,111170.0,0.85651286]
[1760595138019,0.092404,111180.0,111170.0,1.19651286]
[1760595138646,0.092404,111180.0,111170.0,1.19451286]
[1760595138861,0.092404,111180.0,111170.0,1.19551286]
[1760595139080,0.092404,111180.0,111170.0,1.23265391]
[1760595139548,0.03009736,111210.0,111200.0,0.17985611]
[1760595139770,0.16009736,111210.0,111200.0,0.32902756]
[1760595139985,0.13,111210.0,111200.0,0.32902756]
[1760595140434,0.30983994,111210.0,111200.0,0.29305611]
[1760595140662,0.16660961,111210.0,111200.0,0.29305611]
[1760595141507,0.16660961,111210.0,111200.0,0.29301611]
[1760595141952,0.16660961,111210.0,111200.0,0.17985611]
[1760595142159,0.16660961,111210.0,111200.0,0.29301611]
[1760595142379,0.73146296,111210.0,111200.0,0.29301611]
[1760595142589,0.73146296,111210.0,111200.0,0.17985611]
[1760595142796,0.73146296,111210.0,111200.0,0.29301611]
[1760595144376,0.34644955,111210.0,111200.0,0.17985611]
[1760595144601,0.73146296,111210.0,111200.0,0.29301611]
[1760595146790,0.73146296,111210.0,111200.0,0.17985611]
[1760595147070,0.55162302,111210.0,111200.0,0.32898756]
[1760595147289,0.16660961,111210.0,111200.0,0.29301611]
[1760595147508,0.73146296,111210.0,111200.0,0.11316]
[1760595148830,0.73146296,111210.0,111200.0,0.29301611]
[1760595149468,0.73146296,111210.0,111200.0,0.17985611]
[1760595149688,0.73146296,111210.0,111200.0,0.29301611]
[1760595150116,0.73146296,111210.0,111200.0,0.17985611]
[1760595150542,0.73146296,111210.0,111200.0,0.29301611]
[1760595151420,0.73146296,111210.0,111200.0,0.11316]
[1760595152189,0.73146296,111210.0,111200.0,0.29301611]
[1760595153529,0.73146296,111210.0,111200.0,0.17985611]
[1760595153707,0.73146296,111210.0,111200.0,0.29301611]
[1760595153915,0.34644955,111210.0,111200.0,0.17985611]
[1760595154323,0.73146296,111210.0,111200.0,0.17985611]
[1760595154957,0.34644955,111210.0,111200.0,0.17985611]
[1760595155318,0.34644955,111210.0,111200.0,0.29301611]
[1760595156072,0.34644955,111210.0,111200.0,0.17985611]
[1760595156807,0.34644955,111210.0,111200.0,0.29301611]
[1760595157221,0.34644955,111210.0,111200.0,0.17985611]
[1760595157432,0.16660961,111210.0,111200.0,0.17985611]
[1760595157639,0.16660961,111210.0,111200.0,0.29301611]
[1760595158268,0.16660961,111210.0,111200.0,0.17985611]
[1760595158476,0.16660961,111210.0,111200.0,0.29301611]
[1760595158699,0.16660961,111210.0,111200.0,0.17985611]
[1760595158910,0.34644955,111210.0,111200.0,0.29301611]
[1760595159120,0.34644955,111210.0,111200.0,0.17985611]
[1760595159754,0.34644955,111210.0,111200.0,0.29301611]
[1760595160390,0.73146296,111210.0,111200.0,0.29301611]
[1760595160856,0.16660961,111210.0,111200.0,0.17985611]
[1760595161069,0.13,111210.0,111200.0,0.69053109]
[1760595161295,4.55887904,111240.0,111220.0,0.17982377]
[1760595161508,3.875187,111230.0,111220.0,0.17982377]
[1760595161719,0.09,111230.0,111220.0,0.17982377]
[1760595161937,0.12079521,111230.0,111220.0,0.29298377]
[1760595162430,0.12084505,111230.0,111220.0,0.29298377]
[1760595162846,0.12084505,111230.0,111220.0,0.17982377]
[1760595163058,0.12084505,111230.0,111220.0,0.21668663]
[1760595163482,0.12084505,111230.0,111220.0,0.32984663]
[1760595164318,0.12084505,111230.0,111220.0,0.21668663]
[1760595164542,0.12084505,111230.0,111220.0,0.32984663]